fUSD/lending_fUSD_20260115
["ID","MTS","AMOUNT","RATE_DAILY","PERIOD"]
[402021436,1768475447291,-483.21,0.00034274,2]
[402021437,1768475447302,-1324.04,0.00034274,2]
[402021438,1768475447312,-238.8,0.00034319,30]
[402021439,1768475447322,-505.0,0.00034689,10]
[402021440,1768475447333,-2000.0,0.000349,120]
[402021441,1768475447343,-2000.0,0.000349,120]
[402021442,1768475447354,-2000.0,0.000349,120]
[402021443,1768475447364,-2000.0,0.000349,120]
[402021444,1768475447374,-2000.0,0.000349,120]
[402021445,1768475447384,-276.76,0.000349,14]
[402021446,1768475447396,-100000.0,0.00035,6]
[402021447,1768475447406,-224.93768703,0.00035,120]
[402021448,1768475447416,-1000.0,0.00035,30]
[402021449,1768475447426,-1000.0,0.00035,120]
[402021450,1768475447436,-1000.0,0.00035,120]
[402021451,1768475447445,-168.35101,0.00035,31]
[402021452,1768475447456,-151.0,0.00035,31]
[402021453,1768475447465,-151.298537,0.00035,31]
[402021454,1768475447476,-151.0,0.00035,31]
[402021455,1768475447486,-171.7,0.00035,2]
[402021456,1768475447497,-179.32,0.00035507,2]
[402021457,1768475447508,-151.12,0.00035507,2]
[402021458,1768475447520,-151.18,0.00035507,2]
[402021459,1768475447530,-467.43,0.00035507,2]
[402021460,1768475447539,-151.12,0.00035507,2]
[402021461,1768475447549,-150.0,0.00035507,2]
[402021462,1768475447558,-467.43,0.00035507,2]
[402021463,1768475447568,-466.86,0.00035507,2]
[402021464,1768475447580,-150.0,0.00035507,2]
[402021465,1768475447596,-1000.0,0.0003557,2]
[402021466,1768475447606,-500.0,0.0003557,2]
[402021467,1768475447617,-600.0,0.00035616,2]
[402021468,1768475447629,-488.29332106,0.00035753,2]
[402021469,1768475447646,-1000.0,0.000358,50]
[402021470,1768475447657,-1000.0,0.000358,50]
[402021471,1768475447668,-1000.0,0.000358,50]
[402021472,1768475447679,-1000.0,0.000358,50]
[402021473,1768475447690,-1000.0,0.000358,50]
[402021474,1768475447702,-1000.0,0.000358,50]
[402021475,1768475447714,-426.64,0.000358,50]
[402021476,1768475447723,-8847.00469551,0.00035814,2]
[402021477,1768475447733,-1101.0,0.00035835,5]
[402021478,1768475447743,-500.0,0.00036,120]
[402021479,1768475447753,-152.0,0.0003602,3]
[402021480,1768475447764,-600.0,0.00036164,2]
[402021481,1768475447774,-661.95,0.00036192,2]
[402021482,1768475447785,-505.0,0.00036199,11]
[402021483,1768475447795,-276.76,0.000362,14]
[402021484,1768475447806,-600.0,0.00036712,2]
[402021485,1768475447816,-171.7,0.000368,2]
[402021486,1768475447826,-662.09,0.00037123,2]
[402021487,1768475447836,-600.0,0.0003726,2]
[402021488,1768475447845,-1180.06,0.00037372,2]
[402021489,1768475447855,-1101.0,0.00037627,5]
[402021490,1768475447865,-276.76,0.000377,14]
[402021491,1768475447875,-505.0,0.0003771,13]
[402021492,1768475447884,-600.0,0.00037808,2]
[402021493,1768475447894,-290.395179,0.000379,15]
[402021494,1768475447904,-1000.0,0.00038,120]
[402021495,1768475447914,-1000.0,0.00038,30]
[402021496,1768475447924,-1660.63792967,0.00038,120]
[402021497,1768475447934,-500.0,0.00038,120]
[402021498,1768475447944,-173.47366199,0.00038299,2]
[402021499,1768475447953,-3190.0,0.00038356,120]
[402021500,1768475447963,-5000.0,0.00038356,120]
[402021501,1768475447973,-500.0,0.00038356,60]
[402021502,1768475447982,-839.0,0.00038356,120]
[402021503,1768475447992,-185.715952,0.00038356,30]
[402021504,1768475448001,-153.601099,0.00038356,120]
[402021505,1768475448011,-151.0,0.00038356,120]
[402021506,1768475448021,-600.0,0.00038356,2]
[402021507,1768475448031,-500.0,0.00038411,60]
[402021508,1768475448041,-500.0,0.00038466,60]
[402021509,1768475448051,-500.0,0.0003852,60]
[402021510,1768475448061,-500.0,0.00038575,60]
[402021511,1768475448071,-300.0,0.00038584,2]
[402021512,1768475448080,-300.0,0.00038584,2]
[402021513,1768475448090,-300.0,0.00038584,2]
[402021514,1768475448100,-300.0,0.00038584,2]
[402021515,1768475448110,-300.0,0.00038584,2]
[402021516,1768475448119,-300.0,0.00038584,2]
[402021517,1768475448129,-398.16953504,0.00038584,2]
[402021518,1768475448139,-300.0,0.00038584,2]
[402021519,1768475448152,-300.0,0.00038584,2]
[402021520,1768475448162,-300.0,0.00038584,2]
[402021521,1768475448172,-300.0,0.00038584,2]
[402021522,1768475448182,-300.0,0.00038584,2]
[402021523,1768475448192,-300.0,0.00038584,2]
[402021524,1768475448202,-300.0,0.00038584,2]
[402021525,1768475448212,-300.0,0.00038584,2]
[402021526,1768475448222,-300.0,0.00038584,2]
[402021527,1768475448232,-300.0,0.00038584,2]
[402021528,1768475448243,-300.0,0.00038584,2]
[402021529,1768475448254,-300.0,0.00038584,2]
[402021530,1768475448264,-390.44915998,0.00038584,2]
[402021531,1768475448275,-158.99,0.000386,2]
[402021532,1768475448285,-150.0,0.0003861,30]
[402021533,1768475448295,-150.19623091,0.0003861,30]
[402021534,1768475448305,-1014.31236684,0.0003862,2]
[402021535,1768475448316,-500.0,0.0003863,60]
[402021536,1768475448326,-8847.00469551,0.00038678,2]
[402021537,1768475448336,-500.0,0.00038685,60]
[402021538,1768475448346,-500.0,0.000387,120]
[402021539,1768475448356,-500.0,0.000387,120]
[402021540,1768475448367,-500.0,0.000387,120]
[402021541,1768475448377,-500.0,0.000387,120]
[402021542,1768475448387,-500.0,0.0003874,60]
[402021543,1768475448397,-500.0,0.00038794,60]
[402021544,1768475448407,-500.0,0.00038849,60]
[402021545,1768475448417,-500.0,0.00038904,60]
[402021546,1768475448427,-600.0,0.00038904,2]
[402021547,1768475448436,-500.0,0.00038959,60]
[402021548,1768475448446,-1000.0,0.00039,120]
[402021549,1768475448455,-878.59,0.00039,20]
[402021550,1768475448465,-500.0,0.00039014,60]
[402021551,1768475448475,-500.0,0.00039068,60]
[402021552,1768475448485,-500.0,0.00039123,60]
[402021553,1768475448495,-1737.554,0.00039156,54]
[402021554,1768475448506,-488.29332106,0.00039174,2]
[402021555,1768475448516,-500.0,0.00039178,60]
[402021556,1768475448526,-158.99,0.000392,2]
[402021557,1768475448540,-505.0,0.0003922,15]
[402021558,1768475448549,-500.0,0.00039233,60]
[402021559,1768475448559,-500.0,0.00039288,60]
[402021560,1768475448568,-591.05273317,0.00039342,60]
[402021561,1768475448578,-238.8,0.00039366,120]
[402021562,1768475448587,-600.0,0.00039452,2]
[402021563,1768475448597,-500.0,0.00039702,30]
[402021564,1768475448607,-592.65,0.00039726,120]
[402021565,1768475448616,-500.0,0.00039726,120]
[402021566,1768475448626,-4566.27131223,0.000398,30]
[402021567,1768475448638,-592.65,0.00039863,120]
[402021568,1768475448647,-500.0,0.00039863,120]
[402021569,1768475448658,-152.0,0.00039878,4]
[402021570,1768475448668,-16480.59130921,0.000399,2]
[402021571,1768475448679,-200.0,0.000399,19]
[402021572,1768475448690,-151.0,0.00039997,14]
[402021573,1768475448704,-151.0,0.0004,120]
[402021574,1768475448714,-151.0,0.0004,120]
[402021575,1768475448724,-2141.97696811,0.0004,100]
[402021576,1768475448735,-1000.0,0.0004,120]
[402021577,1768475448746,-1000.0,0.0004,120]
[402021578,1768475448755,-1000.0,0.0004,120]
[402021579,1768475448765,-1000.0,0.0004,120]
[402021580,1768475448775,-1000.0,0.0004,120]
[402021581,1768475448785,-1000.0,0.0004,120]
[402021582,1768475448795,-1000.0,0.0004,120]
[402021583,1768475448805,-100000.0,0.0004,7]
[402021584,1768475448814,-14100.02107676,0.0004,4]
[402021585,1768475448824,-50000.0,0.0004,40]
[402021586,1768475448834,-534.7978436,0.0004,30]
[402021587,1768475448844,-34774.41,0.0004,120]
[402021588,1768475448854,-1000.0,0.0004,120]
[402021589,1768475448864,-679.0,0.0004,120]
[402021590,1768475448875,-500.0,0.0004,120]
[402021591,1768475448885,-500.0,0.0004,120]
[402021592,1768475448894,-1000.0,0.0004,120]
[402021593,1768475448904,-1000.0,0.0004,120]
[402021594,1768475448916,-51220.56326119,0.0004,14]
[402021595,1768475448926,-151.0,0.0004,120]
[402021596,1768475448936,-500.0,0.0004,120]
[402021597,1768475448946,-15236.5,0.0004,120]
[402021598,1768475448957,-151.0,0.0004,120]
[402021599,1768475448969,-151.0,0.0004,120]
[402021600,1768475448979,-151.0,0.0004,120]
[402021601,1768475448988,-222.877652,0.0004,120]
[402021602,1768475448998,-152.496504,0.0004,120]
[402021603,1768475449008,-151.0,0.0004,120]
[402021604,1768475449018,-151.0,0.0004,120]
[402021605,1768475449028,-151.0,0.0004,120]
[402021606,1768475449037,-151.0,0.0004,120]
[402021607,1768475449047,-151.0,0.0004,120]
[402021608,1768475449057,-151.0,0.0004,120]
[402021609,1768475449067,-151.0,0.0004,120]
[402021610,1768475449076,-151.0,0.0004,120]
[402021611,1768475449086,-151.0,0.0004,120]
[402021612,1768475449095,-151.0,0.0004,120]
[402021613,1768475449105,-151.0,0.0004,120]
[402021614,1768475449115,-151.0,0.0004,120]
[402021615,1768475449126,-151.0,0.0004,120]
[402021616,1768475449136,-253.0,0.0004,30]
[402021617,1768475449146,-151.0,0.0004,120]
[402021618,1768475449155,-592.65,0.0004,120]
[402021619,1768475449165,-151.0,0.0004,120]
[402021620,1768475449175,-151.0,0.0004,120]
[402021621,1768475449186,-216.208089,0.0004,120]
[402021622,1768475449196,-500.0,0.0004,120]
[402021623,1768475449206,-600.0,0.0004,2]
[402021624,1768475449216,-592.65,0.00040136,120]
[402021625,1768475449226,-500.0,0.00040136,120]
[402021626,1768475449237,-1000.0,0.0004027,3]
[402021627,1768475449248,-500.0,0.0004027,3]
[402021628,1768475449258,-592.65,0.00040273,120]
[402021629,1768475449268,-500.0,0.00040273,120]
[402021630,1768475449278,-592.65,0.0004041,120]
[402021631,1768475449288,-500.0,0.0004041,120]
[402021632,1768475449298,-474.0,0.00040466,120]
[402021633,1768475449308,-592.65,0.00040547,120]
[402021634,1768475449318,-500.0,0.00040547,120]
[402021635,1768475449327,-600.0,0.00040548,2]
[402021636,1768475449337,-592.65,0.00040684,120]
[402021637,1768475449348,-500.0,0.00040684,120]
[402021638,1768475449358,-505.0,0.0004073,16]
[402021639,1768475449367,-151.0,0.000408,120]
[402021640,1768475449378,-151.0,0.000408,120]
[402021641,1768475449388,-592.65,0.00040821,120]
[402021642,1768475449398,-500.0,0.00040821,120]
[402021643,1768475449410,-150.0,0.0004089,120]
[402021644,1768475449421,-10623.52253407,0.000409,120]
[402021645,1768475449431,-500.0,0.00040953,30]
[402021646,1768475449441,-150.0,0.00040957,120]
[402021647,1768475449451,-592.65,0.00040958,120]
[402021648,1768475449461,-365.62773984,0.00040958,120]
[402021649,1768475449471,-300.0,0.00040986,60]
[402021650,1768475449481,-6264.55327944,0.00040995,2]
[402021651,1768475449491,-1000.0,0.00041,120]
[402021652,1768475449500,-22900.0,0.00041,2]
[402021653,1768475449510,-849.0,0.00041,120]
[402021654,1768475449520,-5000.0,0.00041,120]
[402021655,1768475449531,-276.76,0.00041,14]
[402021656,1768475449541,-150.0,0.00041,120]
[402021657,1768475449550,-304.42914391,0.00041,14]
[402021658,1768475449560,-2758.21,0.00041,60]
[402021659,1768475449846,-253.0,0.00041,34]
[402021660,1768475449856,-3000.0,0.0004103,14]
[402021661,1768475449865,-500.0,0.0004103,14]
[402021662,1768475449875,-1500.0,0.0004103,14]
[402021663,1768475449884,-300.0,0.00041068,22]
[402021664,1768475449894,-153.99546139,0.00041092,14]
[402021665,1768475449905,-1000.0,0.00041095,2]
[402021666,1768475449915,-693.54491657,0.00041095,30]
[402021667,1768475449924,-213.99991879,0.00041095,30]
[402021668,1768475449935,-237.617073,0.00041095,30]
[402021669,1768475449944,-150.978547,0.00041095,30]
[402021670,1768475449953,-150.978527,0.00041095,30]
[402021671,1768475449963,-281.379602,0.00041095,30]
[402021672,1768475449972,-501.90469144,0.00041095,30]
[402021673,1768475449982,-500.0,0.00041095,30]
[402021674,1768475449992,-500.0,0.00041095,30]
[402021675,1768475450001,-500.0,0.00041095,30]
[402021676,1768475450011,-500.0,0.00041095,30]
[402021677,1768475450020,-500.0,0.00041095,30]
[402021678,1768475450030,-503.08232861,0.00041095,30]
[402021679,1768475450040,-500.0,0.00041095,30]
[402021680,1768475450049,-500.0,0.00041095,30]
[402021681,1768475450059,-500.0,0.00041095,30]
[402021682,1768475450069,-544.2516501,0.00041095,30]
[402021683,1768475450078,-500.0,0.00041095,30]
[402021684,1768475450088,-500.0,0.00041095,30]
[402021685,1768475450097,-500.0,0.00041095,30]
[402021686,1768475450106,-500.0,0.00041095,30]
[402021687,1768475450116,-500.68081172,0.00041095,30]
[402021688,1768475450125,-500.98394871,0.00041095,30]
[402021689,1768475450134,-500.0,0.00041095,30]
[402021690,1768475450144,-500.0,0.00041095,30]
[402021691,1768475450153,-500.0,0.00041095,30]
[402021692,1768475450163,-500.0,0.00041095,30]
[402021693,1768475450173,-500.0,0.00041095,30]
[402021694,1768475450182,-500.0,0.00041095,30]
[402021695,1768475450191,-500.0,0.00041095,30]
[402021696,1768475450201,-500.0,0.00041095,30]
[402021697,1768475450211,-502.59740436,0.00041095,30]
[402021698,1768475450220,-607.07,0.00041095,30]
[402021699,1768475450230,-505.85,0.00041095,30]
[402021700,1768475450240,-502.17397834,0.00041095,30]
[402021701,1768475450250,-504.27761344,0.00041095,30]
[402021702,1768475450260,-500.0,0.00041095,30]
[402021703,1768475450269,-1367.1,0.00041095,30]
[402021704,1768475450279,-596.21689534,0.00041095,30]
[402021705,1768475450289,-613.9,0.00041095,30]
[402021706,1768475450298,-603.8,0.00041095,30]
[402021707,1768475450310,-500.0,0.00041095,30]
[402021708,1768475450319,-1123.11,0.00041095,30]
[402021709,1768475450329,-500.0,0.00041095,30]
[402021710,1768475450339,-500.0,0.00041095,30]
[402021711,1768475450348,-343.23210314,0.00041095,30]
[402021712,1768475450358,-500.0,0.00041095,30]
[402021713,1768475450368,-666.75,0.00041095,30]
[402021714,1768475450378,-500.0,0.00041095,30]
[402021715,1768475450387,-520.75,0.00041095,30]
[402021716,1768475450397,-500.0,0.00041095,30]
[402021717,1768475450407,-500.0,0.00041095,30]
[402021718,1768475450417,-507.13855067,0.00041095,30]
[402021719,1768475450427,-500.0,0.00041095,30]
[402021720,1768475450437,-509.14601257,0.00041095,30]
[402021721,1768475450447,-500.0,0.00041095,30]
[402021722,1768475450456,-502.80481364,0.00041095,30]
[402021723,1768475450465,-500.0,0.00041095,30]
[402021724,1768475450475,-500.0,0.00041095,30]
[402021725,1768475450485,-500.0,0.00041095,30]
[402021726,1768475450494,-500.0,0.00041095,30]
[402021727,1768475450504,-500.0,0.00041095,30]
[402021728,1768475450513,-500.0,0.00041095,30]
[402021729,1768475450524,-500.0,0.00041095,30]
[402021730,1768475450533,-500.0,0.00041095,30]
[402021731,1768475450543,-500.0,0.00041095,30]
[402021732,1768475450552,-500.0,0.00041095,30]
[402021733,1768475450561,-500.0,0.00041095,30]
[402021734,1768475450571,-502.18394972,0.00041095,30]
[402021735,1768475450580,-500.0,0.00041095,30]
[402021736,1768475450589,-503.00300261,0.00041095,30]
[402021737,1768475450599,-500.0,0.00041095,30]
[402021738,1768475450608,-500.0,0.00041095,30]
[402021739,1768475450618,-500.0,0.00041095,30]
[402021740,1768475450628,-610.94662604,0.00041095,30]
[402021741,1768475450640,-500.0,0.00041095,30]
[402021742,1768475450650,-500.0,0.00041095,30]
[402021743,1768475450659,-500.0,0.00041095,30]
[402021744,1768475450669,-500.0,0.00041095,30]
[402021745,1768475450679,-500.0,0.00041095,5]
[402021746,1768475450689,-505.58559358,0.00041095,30]
[402021747,1768475450698,-500.0,0.00041095,30]
[402021748,1768475450708,-520.41,0.00041095,30]
[402021749,1768475450718,-500.0,0.00041095,30]
[402021750,1768475450727,-500.0,0.00041095,30]
[402021751,1768475450736,-528.41,0.00041095,30]
[402021752,1768475450746,-505.11199191,0.00041095,30]
[402021753,1768475450755,-508.48090777,0.00041095,30]
[402021754,1768475450765,-507.7186958,0.00041095,30]
[402021755,1768475450774,-500.0,0.00041095,30]
[402021756,1768475450784,-500.0,0.00041095,30]
[402021757,1768475450793,-500.0,0.00041095,30]
[402021758,1768475450803,-500.0,0.00041095,30]
[402021759,1768475450812,-1328.99,0.00041095,30]
[402021760,1768475450822,-993.39,0.00041095,30]
[402021761,1768475450831,-500.0,0.00041095,30]
[402021762,1768475450840,-500.0,0.00041095,30]
[402021763,1768475450850,-2107.71,0.00041095,30]
[402021764,1768475450859,-500.0,0.00041095,30]
[402021765,1768475450868,-500.0,0.00041095,30]
[402021766,1768475450878,-500.0,0.00041095,30]
[402021767,1768475450888,-500.0,0.00041095,30]
[402021768,1768475450898,-781.09,0.00041095,30]
[402021769,1768475450907,-736.51,0.00041095,30]
[402021770,1768475450916,-500.0,0.00041095,30]
[402021771,1768475450926,-500.0,0.00041095,30]
[402021772,1768475450935,-500.0,0.00041095,30]
[402021773,1768475450945,-500.0,0.00041095,30]
[402021774,1768475450955,-1219.37,0.00041095,30]
[402021775,1768475450965,-500.0,0.00041095,30]
[402021776,1768475450975,-500.0,0.00041095,30]
[402021777,1768475450984,-500.0,0.00041095,30]
[402021778,1768475450995,-503.36391659,0.00041095,30]
[402021779,1768475451004,-500.0,0.00041095,30]
[402021780,1768475451013,-500.0,0.00041095,30]
[402021781,1768475451024,-580.58,0.00041095,30]
[402021782,1768475451034,-500.0,0.00041095,30]
[402021783,1768475451044,-500.0,0.00041095,30]
[402021784,1768475451055,-500.0,0.00041095,30]
[402021785,1768475451065,-500.0,0.00041095,30]
[402021786,1768475451075,-500.0,0.00041095,30]
[402021787,1768475451084,-500.0,0.00041095,30]
[402021788,1768475451094,-500.0,0.00041095,30]
[402021789,1768475451104,-500.0,0.00041095,30]
[402021790,1768475451115,-503.36444633,0.00041095,30]
[402021791,1768475451125,-500.0,0.00041095,30]
[402021792,1768475451135,-501.5118977,0.00041095,30]
[402021793,1768475451144,-500.0,0.00041095,30]
[402021794,1768475451154,-500.0,0.00041095,30]
[402021795,1768475451164,-500.0,0.00041095,30]
[402021796,1768475451175,-503.38760863,0.00041095,30]
[402021797,1768475451185,-1208.87,0.00041095,30]
[402021798,1768475451196,-500.0,0.00041095,30]
[402021799,1768475451206,-504.46,0.00041095,30]
[402021800,1768475451216,-500.0,0.00041095,30]
[402021801,1768475451228,-604.32,0.00041095,30]
[402021802,1768475451239,-500.0,0.00041095,30]
[402021803,1768475451254,-628.26,0.00041095,30]
[402021804,1768475451268,-504.53081222,0.00041095,30]
[402021805,1768475451278,-1002.88,0.00041095,30]
[402021806,1768475451288,-502.77307193,0.00041095,30]
[402021807,1768475451298,-500.0,0.00041095,30]
[402021808,1768475451308,-500.0,0.00041095,30]
[402021809,1768475451318,-514.06,0.00041095,30]
[402021810,1768475451329,-500.0,0.00041095,30]
[402021811,1768475451339,-500.0,0.00041095,30]
[402021812,1768475451348,-500.0,0.00041095,30]
[402021813,1768475451358,-500.0,0.00041095,30]
[402021814,1768475451368,-500.0,0.00041095,30]
[402021815,1768475451378,-781.46,0.00041095,30]
[402021816,1768475451388,-505.72090737,0.00041095,30]
[402021817,1768475451398,-505.8983457,0.00041095,30]
[402021818,1768475451407,-504.84931087,0.00041095,30]
[402021819,1768475451417,-500.0,0.00041095,30]
[402021820,1768475451427,-500.0,0.00041095,30]
[402021821,1768475451437,-500.0,0.00041095,30]
[402021822,1768475451447,-500.0,0.00041095,30]
[402021823,1768475451456,-500.0,0.00041095,30]
[402021824,1768475451466,-841.24,0.00041095,30]
[402021825,1768475451476,-500.0,0.00041095,30]
[402021826,1768475451486,-500.0,0.00041095,30]
[402021827,1768475451495,-500.0,0.00041095,30]
[402021828,1768475451505,-1315.52,0.00041095,30]
[402021829,1768475451515,-500.0,0.00041095,30]
[402021830,1768475451526,-756.33,0.00041095,30]
[402021831,1768475451536,-500.0,0.00041095,30]
[402021832,1768475451545,-674.85,0.00041095,30]
[402021833,1768475451555,-500.0,0.00041095,30]
[402021834,1768475451565,-500.0,0.00041095,30]
[402021835,1768475451574,-504.51220608,0.00041095,30]
[402021836,1768475451584,-674.5,0.00041095,30]
[402021837,1768475451594,-508.82465601,0.00041095,30]
[402021838,1768475451603,-500.0,0.00041095,30]
[402021839,1768475451613,-500.0,0.00041095,30]
[402021840,1768475451622,-500.0,0.00041095,2]
[402021841,1768475451632,-500.0,0.00041095,30]
[402021842,1768475451645,-500.0,0.00041095,30]
[402021843,1768475451655,-545.99,0.00041095,30]
[402021844,1768475451667,-948.51,0.00041095,30]
[402021845,1768475451678,-1107.83,0.00041095,30]
[402021846,1768475451687,-500.0,0.00041095,30]
[402021847,1768475451697,-500.0,0.00041095,30]
[402021848,1768475451707,-500.0,0.00041095,30]
[402021849,1768475451719,-608.54,0.00041095,30]
[402021850,1768475451729,-161.0176457,0.00041095,30]
[402021851,1768475451738,-500.0,0.00041095,30]
[402021852,1768475451748,-518.71672915,0.00041095,30]
[402021853,1768475451758,-870.58,0.00041095,30]
[402021854,1768475451768,-500.0,0.00041095,30]
[402021855,1768475451778,-1359.85,0.00041095,30]
[402021856,1768475451788,-623.63477022,0.00041095,30]
[402021857,1768475451798,-500.0,0.00041095,30]
[402021858,1768475451807,-500.0,0.00041095,30]
[402021859,1768475451817,-500.0,0.00041095,30]
[402021860,1768475451827,-500.0,0.00041095,30]
[402021861,1768475451836,-500.0,0.00041095,30]
[402021862,1768475451845,-500.0,0.00041095,30]
[402021863,1768475451857,-839.13,0.00041095,30]
[402021864,1768475451867,-1067.77,0.00041095,30]
[402021865,1768475451878,-544.81,0.00041095,30]
[402021866,1768475451888,-500.0,0.00041095,30]
[402021867,1768475451897,-1004.2,0.00041095,30]
[402021868,1768475451907,-500.0,0.00041095,30]
[402021869,1768475451917,-500.0,0.00041095,30]
[402021870,1768475451927,-500.0,0.00041095,30]
[402021871,1768475451937,-938.04,0.00041095,30]
[402021872,1768475451947,-1096.39,0.00041095,30]
[402021873,1768475451959,-500.0,0.00041095,30]
[402021874,1768475451969,-500.0,0.00041095,30]
[402021875,1768475451979,-785.68,0.00041095,30]
[402021876,1768475451988,-1432.84,0.00041095,30]
[402021877,1768475451997,-500.0,0.00041095,30]
[402021878,1768475452007,-500.0,0.00041095,30]
[402021879,1768475452016,-500.0,0.00041095,30]
[402021880,1768475452025,-559.34154953,0.00041095,30]
[402021881,1768475452035,-500.0,0.00041095,30]
[402021882,1768475452044,-500.0,0.00041095,30]
[402021883,1768475452053,-1053.01,0.00041095,30]
[402021884,1768475452063,-1250.6,0.00041095,30]
[402021885,1768475452073,-500.0,0.00041095,30]
[402021886,1768475452083,-500.0,0.00041095,30]
[402021887,1768475452092,-500.0,0.00041095,30]
[402021888,1768475452102,-500.0,0.00041095,30]
[402021889,1768475452112,-500.0,0.00041095,30]
[402021890,1768475452122,-500.0,0.00041095,30]
[402021891,1768475452131,-500.0,0.00041095,30]
[402021892,1768475452141,-500.0,0.00041095,30]
[402021893,1768475452150,-1136.04,0.00041095,30]
[402021894,1768475452160,-743.87,0.00041095,30]
[402021895,1768475452169,-525.94357008,0.00041095,30]
[402021896,1768475452179,-500.0,0.00041095,30]
[402021897,1768475452188,-758.89,0.00041095,30]
[402021898,1768475452197,-500.0,0.00041095,30]
[402021899,1768475452206,-542.81485516,0.00041095,30]
[402021900,1768475452217,-1201.8,0.00041095,30]
[402021901,1768475452227,-500.0,0.00041095,30]
[402021902,1768475452246,-500.0,0.00041095,30]
[402021903,1768475452256,-350.66133071,0.00041095,30]
[402021904,1768475452413,-397.26866929,0.00041095,30]
[402021905,1768475452423,-500.0,0.00041095,30]
[402021906,1768475452433,-540.40241751,0.00041095,30]
[402021907,1768475452442,-800.84,0.00041095,30]
[402021908,1768475452451,-919.19,0.00041095,30]
[402021909,1768475452461,-500.0,0.00041095,30]
[402021910,1768475452471,-500.0,0.00041095,30]
[402021911,1768475452480,-500.0,0.00041095,30]
[402021912,1768475452490,-500.0,0.00041095,30]
[402021913,1768475452501,-1723.17,0.00041095,30]
[402021914,1768475452511,-500.0,0.00041095,30]
[402021915,1768475452521,-626.97,0.00041095,30]
[402021916,1768475452530,-500.0,0.00041095,30]
[402021917,1768475452540,-559.3067443,0.00041095,30]
[402021918,1768475452549,-500.0,0.00041095,30]
[402021919,1768475452559,-500.0,0.00041095,30]
[402021920,1768475452568,-732.75,0.00041095,30]
[402021921,1768475452577,-616.43,0.00041095,30]
[402021922,1768475452587,-1110.11,0.00041095,30]
[402021923,1768475452596,-500.0,0.00041095,30]
[402021924,1768475452605,-500.0,0.00041095,30]
[402021925,1768475452615,-500.0,0.00041095,30]
[402021926,1768475452625,-526.44,0.00041095,30]
[402021927,1768475452635,-500.0,0.00041095,30]
[402021928,1768475452648,-500.0,0.00041095,30]
[402021929,1768475452658,-500.0,0.00041095,30]
[402021930,1768475452667,-500.0,0.00041095,30]
[402021931,1768475452677,-539.3489849,0.00041095,30]
[402021932,1768475452688,-500.0,0.00041095,30]
[402021933,1768475452697,-151.0,0.00041095,120]
[402021934,1768475452707,-507.80017408,0.00041095,30]
[402021935,1768475452718,-859.77,0.00041095,30]